fUST/lending_fUST_20250628
["ID","MTS","AMOUNT","RATE_DAILY","PERIOD"]
[368189861,1751055043561,-274.84049211,0.00019452,2]
[368189863,1751055043571,-279.76935242,0.00019452,2]
[368189865,1751055043580,-460.0,0.00019452,2]
[368189867,1751055043589,-460.0,0.00019452,2]
[368189869,1751055043599,-460.0,0.00019452,2]
[368189871,1751055043608,-460.0,0.00019452,2]
[368189873,1751055043618,-460.0,0.00019452,2]
[368189875,1751055043627,-460.0,0.00019452,2]
[368189877,1751055043636,-460.0,0.00019452,2]
[368189879,1751055043646,-460.0,0.00019452,2]
[368189881,1751055043655,-460.0,0.00019452,2]
[368189883,1751055043665,-480.20217855,0.00019452,2]
[368189885,1751055043677,-460.0,0.00019452,2]
[368189887,1751055043687,-642.94,0.00019452,2]
[368189889,1751055043696,-460.0,0.00019452,2]
[368189891,1751055043706,-460.0,0.00019452,2]
[368189893,1751055043715,-460.0,0.00019452,2]
[368189895,1751055043725,-460.0,0.00019452,2]
[368189897,1751055043734,-833.75,0.00019452,2]
[368189899,1751055043744,-460.0,0.00019452,2]
[368189901,1751055043754,-460.0,0.00019452,2]
[368189903,1751055043763,-460.0,0.00019452,2]
[368189905,1751055043773,-460.0,0.00019452,2]
[368189907,1751055043782,-460.0,0.00019452,2]
[368189909,1751055043792,-460.0,0.00019452,2]
[368189911,1751055043801,-439.38909669,0.00019452,2]
[368189913,1751055043811,-1039.56,0.00019452,2]
[368189916,1751055043820,-460.0,0.00019452,2]
[368189918,1751055043831,-460.0,0.00019452,2]
[368189920,1751055043840,-363.55677075,0.00019452,2]
[368189922,1751055043849,-460.0,0.00019452,2]
[368189924,1751055043859,-497.58,0.00019452,2]
[368189926,1751055043868,-328.08587698,0.00019452,2]
[368189928,1751055043877,-460.0,0.00019452,2]
[368189930,1751055043886,-312.17586911,0.00019452,2]
[368189932,1751055043895,-460.0,0.00019452,2]
[368189934,1751055043904,-460.0,0.00019452,2]
[368189936,1751055043914,-460.0,0.00019452,2]
[368189937,1751055043923,-460.0,0.00019452,2]
[368189939,1751055043932,-460.0,0.00019452,2]
[368189941,1751055043941,-460.0,0.00019452,2]
[368189943,1751055043951,-460.0,0.00019452,2]
[368189946,1751055043961,-460.0,0.00019452,2]
[368189947,1751055043970,-460.0,0.00019452,2]
[368189949,1751055043979,-460.0,0.00019452,2]
[368189951,1751055043989,-460.0,0.00019452,2]
[368189953,1751055043998,-460.0,0.00019452,2]
[368189955,1751055044008,-460.0,0.00019452,2]
[368189958,1751055044017,-460.0,0.00019452,2]
[368189960,1751055044027,-566.71,0.00019452,2]
[368189962,1751055044036,-460.0,0.00019452,2]
[368189963,1751055044045,-460.0,0.00019452,2]
[368189965,1751055044054,-460.0,0.00019452,2]
[368189967,1751055044064,-460.0,0.00019452,2]
[368189969,1751055044073,-460.0,0.00019452,2]
[368189971,1751055044082,-460.0,0.00019452,2]
[368189973,1751055044091,-460.0,0.00019452,2]
[368189975,1751055044100,-460.0,0.00019452,2]
[368189977,1751055044110,-460.0,0.00019452,2]
[368189979,1751055044119,-460.0,0.00019452,2]
[368189981,1751055044128,-499.35,0.00019452,2]
[368189983,1751055044138,-460.0,0.00019452,2]
[368189985,1751055044147,-460.0,0.00019452,2]
[368189987,1751055044156,-460.0,0.00019452,2]
[368189990,1751055044166,-460.0,0.00019452,2]
[368189992,1751055044175,-460.0,0.00019452,2]
[368189993,1751055044184,-549.26166299,0.00019452,2]
[368189995,1751055044193,-460.0,0.00019452,2]
[368189997,1751055044202,-460.0,0.00019452,2]
[368189999,1751055044211,-460.0,0.00019452,2]
[368190001,1751055044220,-460.0,0.00019452,2]
[368190003,1751055044230,-460.0,0.00019452,2]
[368190005,1751055044239,-460.0,0.00019452,2]
[368190007,1751055044248,-460.0,0.00019452,2]
[368190009,1751055044257,-460.0,0.00019452,2]
[368190012,1751055044267,-460.0,0.00019452,2]
[368190014,1751055044276,-460.0,0.00019452,2]
[368190015,1751055044286,-460.0,0.00019452,2]
[368190017,1751055044295,-658.83,0.00019452,2]
[368190019,1751055044304,-460.0,0.00019452,2]
[368190022,1751055044314,-441.91857344,0.00019452,2]
[368190024,1751055044323,-465.20090635,0.00019452,2]
[368190026,1751055044332,-982.79,0.00019452,2]
[368190028,1751055044341,-540.46,0.00019452,2]
[368190029,1751055044350,-460.0,0.00019452,2]
[368190031,1751055044360,-460.0,0.00019452,2]
[368190033,1751055044370,-460.0,0.00019452,2]
[368190035,1751055044379,-460.0,0.00019452,2]
[368190037,1751055044389,-426.08296095,0.00019452,2]
[368190040,1751055044399,-460.0,0.00019452,2]
[368190042,1751055044408,-460.0,0.00019452,2]
[368190044,1751055044417,-460.0,0.00019452,2]
[368190046,1751055044427,-460.0,0.00019452,2]
[368190062,1751055044436,-460.0,0.00019452,2]
[368190064,1751055044580,-460.0,0.00019452,2]
[368190066,1751055044589,-460.0,0.00019452,2]
[368190068,1751055044599,-460.0,0.00019452,2]
[368190070,1751055044609,-460.0,0.00019452,2]
[368190072,1751055044618,-488.88,0.00019452,2]
[368190074,1751055044627,-460.0,0.00019452,2]
[368190076,1751055044637,-460.0,0.00019452,2]
[368190078,1751055044646,-460.0,0.00019452,2]
[368190080,1751055044656,-460.0,0.00019452,2]
[368190082,1751055044665,-460.0,0.00019452,2]
[368190084,1751055044678,-460.0,0.00019452,2]
[368190086,1751055044687,-460.0,0.00019452,2]
[368190088,1751055044696,-460.0,0.00019452,2]
[368190090,1751055044705,-460.0,0.00019452,2]
[368190091,1751055044715,-460.0,0.00019452,2]
[368190094,1751055044724,-460.0,0.00019452,2]
[368190096,1751055044734,-460.0,0.00019452,2]
[368190098,1751055044743,-460.0,0.00019452,2]
[368190100,1751055044755,-460.0,0.00019452,2]
[368190102,1751055044764,-851.4,0.00019452,2]
[368190104,1751055044773,-460.0,0.00019452,2]
[368190106,1751055044782,-460.0,0.00019452,2]
[368190107,1751055044791,-460.0,0.00019452,2]
[368190110,1751055044801,-460.0,0.00019452,2]
[368190112,1751055044810,-460.0,0.00019452,2]
[368190114,1751055044820,-460.0,0.00019452,2]
[368190115,1751055044829,-869.88,0.00019452,2]
[368190117,1751055044840,-460.0,0.00019452,2]
[368190119,1751055044849,-460.0,0.00019452,2]
[368190121,1751055044858,-422.70303067,0.00019452,2]
[368190124,1751055044868,-460.0,0.00019452,2]
[368190125,1751055044877,-460.0,0.00019452,2]
[368190127,1751055044885,-460.0,0.00019452,2]
[368190129,1751055044895,-460.0,0.00019452,2]
[368190131,1751055044904,-460.0,0.00019452,2]
[368190133,1751055044913,-460.0,0.00019452,2]
[368190136,1751055044923,-460.0,0.00019452,2]
[368190137,1751055044932,-460.0,0.00019452,2]
[368190139,1751055044941,-460.0,0.00019452,2]
[368190142,1751055044951,-460.0,0.00019452,2]
[368190144,1751055044960,-535.79,0.00019452,2]
[368190145,1751055044969,-701.65,0.00019452,2]
[368190147,1751055044978,-169.29393935,0.00019452,2]
[368190149,1751055044988,-500.0,0.00019452,2]
[368190151,1751055044997,-3734.16,0.00019452,2]
[368190153,1751055045006,-460.0,0.00019452,2]
[368190155,1751055045016,-588.09361166,0.00019452,2]
[368190157,1751055045025,-1022.1,0.00019452,2]
[368190159,1751055045034,-929.8,0.00019452,2]
[368190161,1751055045043,-3999.27,0.00019452,2]
[368190163,1751055045053,-844.44,0.00019452,2]
[368190165,1751055045063,-624.96,0.00019452,2]
[368190167,1751055045071,-460.0,0.00019452,2]
[368190170,1751055045081,-460.0,0.00019452,2]
[368190172,1751055045090,-460.0,0.00019452,2]
[368190174,1751055045099,-623.55,0.00019452,2]
[368190176,1751055045109,-922.99,0.00019452,2]
[368190178,1751055045118,-460.0,0.00019452,2]
[368190179,1751055045127,-460.0,0.00019452,2]
[368190182,1751055045136,-732.66,0.00019452,2]
[368190183,1751055045146,-460.0,0.00019452,2]
[368190185,1751055045155,-1487.62,0.00019452,2]
[368190187,1751055045164,-593.53,0.00019452,2]
[368190189,1751055045173,-2411.34,0.00019452,2]
[368190191,1751055045182,-837.83,0.00019452,2]
[368190193,1751055045191,-464.86961979,0.00019452,2]
[368190195,1751055045200,-460.0,0.00019452,2]
[368190197,1751055045209,-460.0,0.00019452,2]
[368190199,1751055045218,-460.0,0.00019452,2]
[368190201,1751055045228,-460.0,0.00019452,2]
[368190203,1751055045237,-460.0,0.00019452,2]
[368190205,1751055045246,-460.0,0.00019452,2]
[368190207,1751055045255,-460.0,0.00019452,2]
[368190209,1751055045264,-592.97,0.00019452,2]
[368190211,1751055045273,-390.0,0.00019452,2]
[368190213,1751055045282,-460.0,0.00019452,2]
[368190215,1751055045291,-460.0,0.00019452,2]
[368190217,1751055045301,-460.0,0.00019452,2]
[368190219,1751055045312,-3930.83,0.00019452,2]
[368190221,1751055045321,-921.75,0.00019452,2]
[368190223,1751055045330,-4129.43,0.00019452,2]
[368190225,1751055045339,-730.11,0.00019452,2]
[368190227,1751055045348,-460.0,0.00019452,2]
[368190229,1751055045357,-460.0,0.00019452,2]
[368190231,1751055045366,-4721.88,0.00019452,2]
[368190233,1751055045376,-532.87,0.00019452,2]
[368190235,1751055045385,-645.12,0.00019452,2]
[368190237,1751055045394,-713.83,0.00019452,2]
[368190239,1751055045403,-1350.94,0.00019452,2]
[368190241,1751055045413,-499.78424326,0.00019452,2]
[368190244,1751055045422,-460.0,0.00019452,2]
[368190246,1751055045432,-460.0,0.00019452,2]
[368190248,1751055045441,-959.76,0.00019452,2]
[368190249,1751055045450,-641.52,0.00019452,2]
[368190251,1751055045460,-460.0,0.00019452,2]
[368190253,1751055045469,-460.0,0.00019452,2]
[368190255,1751055045478,-2511.01,0.00019452,2]
[368190257,1751055045487,-460.0,0.00019452,2]
[368190259,1751055045496,-460.0,0.00019452,2]
[368190260,1751055045505,-2366.3,0.00019452,2]
[368190262,1751055045514,-460.0,0.00019452,2]
[368190264,1751055045523,-460.0,0.00019452,2]
[368190266,1751055045533,-2514.88,0.00019452,2]
[368190268,1751055045542,-460.0,0.00019452,2]
[368190270,1751055045552,-460.0,0.00019452,2]
[368190272,1751055045560,-460.0,0.00019452,2]
[368190274,1751055045569,-460.0,0.00019452,2]
[368190276,1751055045578,-460.0,0.00019452,2]
[368190278,1751055045587,-460.0,0.00019452,2]
[368190280,1751055045596,-759.0,0.00019452,2]
[368190282,1751055045606,-460.0,0.00019452,2]
[368190284,1751055045615,-982.66,0.00019452,2]
[368190286,1751055045624,-460.0,0.00019452,2]
[368190288,1751055045633,-760.75,0.00019452,2]
[368190290,1751055045645,-1822.68,0.00019452,2]
[368190292,1751055045654,-460.0,0.00019452,2]
[368190294,1751055045663,-326.78062633,0.00019452,2]
[368190296,1751055045675,-7524.67,0.00019452,2]
[368190298,1751055045685,-905.34,0.00019452,2]
[368190300,1751055045694,-460.0,0.00019452,2]
[368190302,1751055045703,-460.0,0.00019452,2]
[368190305,1751055045713,-460.0,0.00019452,2]
[368190307,1751055045722,-460.0,0.00019452,2]
[368190309,1751055045731,-849.67,0.00019452,2]
[368190311,1751055045740,-460.0,0.00019452,2]
[368190313,1751055045750,-460.0,0.00019452,2]
[368190315,1751055045761,-919.95,0.00019452,2]
[368190317,1751055045770,-460.0,0.00019452,2]
[368190319,1751055045779,-503.72,0.00019452,2]
[368190321,1751055045789,-460.0,0.00019452,2]
[368190323,1751055045798,-6293.24,0.00019452,2]
[368190324,1751055045807,-460.0,0.00019452,2]
[368190325,1751055045816,-1443.1,0.00019452,2]
[368190326,1751055045825,-460.0,0.00019452,2]
[368190327,1751055045834,-2749.16,0.00019452,2]
[368190328,1751055045845,-460.0,0.00019452,2]
[368190329,1751055045854,-460.0,0.00019452,2]
[368190330,1751055045863,-698.76,0.00019452,2]
[368190331,1751055045872,-827.35,0.00019452,2]
[368190332,1751055045881,-460.0,0.00019452,2]
[368190333,1751055045893,-460.0,0.00019452,2]
[368190334,1751055045902,-460.0,0.00019452,2]
[368190335,1751055045911,-460.0,0.00019452,2]
[368190336,1751055045920,-169.94755432,0.00019452,2]
[368190337,1751055045929,-2154.92,0.00019452,2]
[368190338,1751055045938,-306.12935371,0.00019452,2]
[368190339,1751055045947,-2004.95,0.00019452,2]
[368190341,1751055045956,-460.0,0.00019452,2]
[368190343,1751055045967,-715.37,0.00019452,2]
[368190345,1751055045978,-460.0,0.00019452,2]
[368190347,1751055045999,-460.0,0.00019452,2]
[368190350,1751055046015,-460.0,0.00019452,2]
[368190351,1751055046024,-460.0,0.00019452,2]
[368190353,1751055046033,-567.03,0.00019452,2]
[368190355,1751055046042,-460.0,0.00019452,2]
[368190357,1751055046053,-1081.22,0.00019452,2]
[368190359,1751055046062,-460.0,0.00019452,2]
[368190361,1751055046072,-460.0,0.00019452,2]
[368190363,1751055046081,-460.0,0.00019452,2]
[368190365,1751055046090,-3745.91,0.00019452,2]
[368190367,1751055046099,-924.69,0.00019452,2]
[368190369,1751055046108,-336.85136243,0.00019452,2]
[368190371,1751055046117,-460.0,0.00019452,2]
[368190373,1751055046127,-491.03676348,0.00019452,2]
[368190375,1751055046138,-460.0,0.00019452,2]
[368190377,1751055046147,-460.0,0.00019452,2]
[368190379,1751055046157,-460.0,0.00019452,2]
[368190381,1751055046166,-460.0,0.00019452,2]
[368190382,1751055046175,-460.0,0.00019452,2]
[368190384,1751055046184,-460.0,0.00019452,2]
[368190387,1751055046195,-460.0,0.00019452,2]
[368190389,1751055046204,-460.0,0.00019452,2]
[368190391,1751055046213,-460.0,0.00019452,2]
[368190392,1751055046222,-460.0,0.00019452,2]
[368190394,1751055046231,-460.0,0.00019452,2]
[368190396,1751055046240,-2237.37,0.00019452,2]
[368190398,1751055046250,-460.0,0.00019452,2]
[368190400,1751055046260,-7095.94,0.00019452,2]
[368190403,1751055046270,-460.0,0.00019452,2]
[368190404,1751055046280,-460.0,0.00019452,2]
[368190406,1751055046289,-460.0,0.00019452,2]
[368190408,1751055046298,-1696.1,0.00019452,2]
[368190410,1751055046308,-509.5180229,0.00019473,2]
[368190413,1751055046317,-500.0,0.00019473,2]
[368190415,1751055046327,-500.0,0.00019473,2]
[368190417,1751055046337,-430.12210363,0.00019473,2]
[368190419,1751055046348,-500.0,0.00019473,2]
[368190421,1751055046359,-500.0,0.00019473,2]
[368190422,1751055046368,-500.0,0.00019721,2]
[368190424,1751055046377,-1000.0,0.00019721,2]
[368190427,1751055046387,-500.0,0.00019721,2]
[368190428,1751055046396,-500.0,0.00019721,2]
[368190430,1751055046406,-1000.0,0.00019721,2]
[368190432,1751055046415,-1000.0,0.00019721,2]
[368190434,1751055046426,-500.0,0.00019723,2]
[368190436,1751055046435,-500.0,0.00019723,2]
[368190439,1751055046446,-460.0,0.00019726,2]
[368190440,1751055046459,-460.0,0.00019726,2]
[368190442,1751055046468,-460.0,0.00019726,2]
[368190444,1751055046477,-460.0,0.00019726,2]
[368190446,1751055046486,-460.0,0.00019726,2]
[368190448,1751055046496,-460.0,0.00019726,2]
[368190450,1751055046505,-460.0,0.00019726,2]
[368190452,1751055046515,-464.20922617,0.00019726,2]
[368190454,1751055046524,-460.0,0.00019726,2]
[368190456,1751055046534,-460.0,0.00019726,2]
[368190458,1751055046543,-460.0,0.00019726,2]
[368190460,1751055046552,-460.0,0.00019726,2]
[368190462,1751055046562,-460.0,0.00019726,2]
[368190464,1751055046571,-460.0,0.00019726,2]
[368190466,1751055046581,-460.0,0.00019726,2]
[368190468,1751055046591,-410.0,0.00019726,2]
[368190470,1751055046600,-460.0,0.00019726,2]
[368190472,1751055046609,-460.0,0.00019726,2]
[368190474,1751055046619,-460.0,0.00019726,2]
[368190476,1751055046629,-460.0,0.00019726,2]
[368190478,1751055046640,-460.0,0.00019726,2]
[368190480,1751055046649,-460.0,0.00019726,2]
[368190482,1751055046658,-460.0,0.00019726,2]
[368190484,1751055046668,-460.0,0.00019726,2]
[368190486,1751055046683,-460.0,0.00019726,2]
[368190488,1751055046693,-544.48814281,0.00019726,2]
[368190490,1751055046702,-460.0,0.00019726,2]
[368190492,1751055046711,-460.0,0.00019726,2]
[368190494,1751055046722,-460.0,0.00019726,2]
[368190496,1751055046732,-460.0,0.00019726,2]
[368190498,1751055046741,-359.18,0.00019726,2]
[368190500,1751055046751,-314.14561234,0.00019726,2]
[368190502,1751055046760,-642.94,0.00019726,2]
[368190504,1751055046770,-460.0,0.00019726,2]
[368190506,1751055046779,-460.0,0.00019726,2]
[368190508,1751055046789,-460.0,0.00019726,2]
[368190510,1751055046798,-833.75,0.00019726,2]
[368190512,1751055046808,-460.0,0.00019726,2]
[368190514,1751055046817,-460.0,0.00019726,2]
[368190516,1751055046827,-460.0,0.00019726,2]
[368190518,1751055046837,-460.0,0.00019726,2]
[368190520,1751055046847,-460.0,0.00019726,2]
[368190522,1751055046856,-1039.56,0.00019726,2]
[368190524,1751055046865,-460.0,0.00019726,2]
[368190526,1751055046875,-497.58,0.00019726,2]
[368190528,1751055046884,-460.0,0.00019726,2]
[368190530,1751055046895,-460.0,0.00019726,2]
[368190532,1751055046904,-460.0,0.00019726,2]
[368190534,1751055046913,-453.1014368,0.00019726,2]
[368190536,1751055046922,-460.0,0.00019726,2]
[368190538,1751055046931,-460.0,0.00019726,2]
[368190540,1751055046940,-460.0,0.00019726,2]
[368190542,1751055046950,-460.0,0.00019726,2]
[368190544,1751055046959,-460.0,0.00019726,2]
[368190546,1751055046968,-249.41677295,0.00019726,2]
[368190548,1751055046978,-566.71,0.00019726,2]
[368190550,1751055046987,-460.0,0.00019726,2]
[368190552,1751055046996,-460.0,0.00019726,2]
[368190554,1751055047006,-460.0,0.00019726,2]
[368190556,1751055047015,-460.0,0.00019726,2]
[368190558,1751055047024,-460.0,0.00019726,2]
[368190560,1751055047033,-460.0,0.00019726,2]
[368190562,1751055047043,-501.48619889,0.00019726,2]
[368190564,1751055047052,-460.0,0.00019726,2]
[368190566,1751055047062,-499.35,0.00019726,2]
[368190568,1751055047071,-460.0,0.00019726,2]
[368190570,1751055047080,-460.0,0.00019726,2]
[368190572,1751055047090,-460.0,0.00019726,2]
[368190574,1751055047099,-460.0,0.00019726,2]
[368190576,1751055047108,-460.0,0.00019726,2]
[368190578,1751055047117,-492.31030742,0.00019726,2]
[368190580,1751055047126,-460.0,0.00019726,2]
[368190582,1751055047135,-460.0,0.00019726,2]
[368190584,1751055047146,-460.0,0.00019726,2]
[368190586,1751055047155,-460.0,0.00019726,2]
[368190588,1751055047164,-466.22461809,0.00019726,2]
[368190590,1751055047174,-460.0,0.00019726,2]
[368190592,1751055047183,-460.0,0.00019726,2]
[368190594,1751055047192,-460.0,0.00019726,2]
[368190596,1751055047201,-658.83,0.00019726,2]
[368190598,1751055047210,-460.0,0.00019726,2]
[368190600,1751055047220,-982.79,0.00019726,2]
[368190602,1751055047230,-540.46,0.00019726,2]
[368190604,1751055047239,-460.0,0.00019726,2]
[368190606,1751055047248,-495.8429992,0.00019726,2]
[368190608,1751055047257,-460.0,0.00019726,2]
[368190610,1751055047267,-460.0,0.00019726,2]
[368190612,1751055047276,-460.0,0.00019726,2]
[368190614,1751055047285,-460.0,0.00019726,2]
[368190616,1751055047294,-460.0,0.00019726,2]
[368190618,1751055047303,-460.0,0.00019726,2]
[368190620,1751055047317,-460.0,0.00019726,2]
[368190622,1751055047326,-460.0,0.00019726,2]
[368190623,1751055047336,-460.0,0.00019726,2]
[368190625,1751055047345,-488.88,0.00019726,2]
[368190627,1751055047355,-460.0,0.00019726,2]
[368190629,1751055047364,-460.0,0.00019726,2]
[368190631,1751055047373,-357.50162222,0.00019726,2]
[368190633,1751055047382,-460.0,0.00019726,2]
[368190635,1751055047393,-460.0,0.00019726,2]
[368190637,1751055047402,-460.0,0.00019726,2]
[368190639,1751055047412,-460.0,0.00019726,2]
[368190641,1751055047421,-460.0,0.00019726,2]
[368190643,1751055047430,-460.0,0.00019726,2]
[368190645,1751055047440,-460.0,0.00019726,2]
[368190647,1751055047450,-336.22182746,0.00019726,2]
[368190649,1751055047459,-460.0,0.00019726,2]
[368190651,1751055047468,-460.0,0.00019726,2]
[368190653,1751055047477,-460.0,0.00019726,2]
[368190655,1751055047486,-851.4,0.00019726,2]
[368190657,1751055047496,-460.0,0.00019726,2]
[368190659,1751055047505,-460.0,0.00019726,2]
[368190661,1751055047514,-460.0,0.00019726,2]
[368190663,1751055047523,-460.0,0.00019726,2]
[368190665,1751055047533,-460.0,0.00019726,2]
[368190667,1751055047542,-869.88,0.00019726,2]
[368190669,1751055047551,-462.30613074,0.00019726,2]
[368190671,1751055047560,-460.0,0.00019726,2]
[368190673,1751055047569,-460.0,0.00019726,2]
[368190675,1751055047579,-460.0,0.00019726,2]
[368190677,1751055047588,-460.0,0.00019726,2]
[368190679,1751055047597,-460.0,0.00019726,2]
[368190681,1751055047606,-460.0,0.00019726,2]
[368190683,1751055047615,-460.0,0.00019726,2]
[368190685,1751055047624,-460.0,0.00019726,2]
[368190687,1751055047635,-460.0,0.00019726,2]
[368190689,1751055047645,-460.0,0.00019726,2]
[368190691,1751055047655,-535.79,0.00019726,2]
[368190693,1751055047664,-701.65,0.00019726,2]
[368190695,1751055047676,-3734.16,0.00019726,2]
[368190697,1751055047686,-438.63062073,0.00019726,2]
[368190699,1751055047695,-1022.1,0.00019726,2]
[368190701,1751055047706,-929.8,0.00019726,2]
[368190703,1751055047716,-3999.27,0.00019726,2]
[368190705,1751055047725,-844.44,0.00019726,2]
[368190707,1751055047735,-624.96,0.00019726,2]
[368190709,1751055047744,-460.0,0.00019726,2]
[368190710,1751055047755,-460.0,0.00019726,2]
[368190713,1751055047764,-460.0,0.00019726,2]
[368190715,1751055047774,-623.55,0.00019726,2]
[368190717,1751055047783,-922.99,0.00019726,2]
[368190719,1751055047793,-460.0,0.00019726,2]
[368190735,1751055047931,-460.0,0.00019726,2]
[368190737,1751055047941,-732.66,0.00019726,2]
[368190739,1751055047950,-460.0,0.00019726,2]
[368190741,1751055047960,-1487.62,0.00019726,2]
[368190743,1751055047969,-593.53,0.00019726,2]
[368190745,1751055047979,-2411.34,0.00019726,2]
[368190747,1751055047989,-837.83,0.00019726,2]
[368190749,1751055047998,-460.0,0.00019726,2]
[368190751,1751055048007,-460.0,0.00019726,2]
[368190753,1751055048016,-460.0,0.00019726,2]
[368190755,1751055048026,-460.0,0.00019726,2]
[368190757,1751055048036,-460.0,0.00019726,2]
[368190759,1751055048045,-460.0,0.00019726,2]
[368190761,1751055048055,-592.97,0.00019726,2]
[368190763,1751055048064,-460.0,0.00019726,2]
[368190765,1751055048074,-460.0,0.00019726,2]
[368190767,1751055048085,-460.0,0.00019726,2]
[368190769,1751055048094,-3930.83,0.00019726,2]
[368190771,1751055048103,-921.75,0.00019726,2]
[368190773,1751055048112,-4129.43,0.00019726,2]
[368190775,1751055048121,-730.11,0.00019726,2]
[368190776,1751055048130,-460.0,0.00019726,2]
[368190778,1751055048139,-460.0,0.00019726,2]
[368190781,1751055048149,-4721.88,0.00019726,2]
[368190782,1751055048158,-532.87,0.00019726,2]
[368190784,1751055048168,-645.12,0.00019726,2]
[368190786,1751055048177,-713.83,0.00019726,2]
[368190788,1751055048187,-1350.94,0.00019726,2]
[368190791,1751055048197,-460.0,0.00019726,2]
[368190792,1751055048207,-460.0,0.00019726,2]
[368190795,1751055048217,-959.76,0.00019726,2]
[368190796,1751055048226,-641.52,0.00019726,2]
[368190798,1751055048236,-460.0,0.00019726,2]
[368190800,1751055048245,-460.0,0.00019726,2]
[368190802,1751055048254,-2511.01,0.00019726,2]
[368190804,1751055048263,-460.0,0.00019726,2]
[368190806,1751055048272,-460.0,0.00019726,2]
[368190808,1751055048281,-2366.3,0.00019726,2]
[368190810,1751055048291,-460.0,0.00019726,2]
[368190812,1751055048300,-460.0,0.00019726,2]
[368190814,1751055048309,-2514.88,0.00019726,2]
[368190816,1751055048317,-460.0,0.00019726,2]
[368190818,1751055048327,-460.0,0.00019726,2]
[368190820,1751055048337,-460.0,0.00019726,2]
[368190821,1751055048346,-460.0,0.00019726,2]
[368190822,1751055048356,-460.0,0.00019726,2]
[368190823,1751055048365,-460.0,0.00019726,2]
[368190824,1751055048374,-759.0,0.00019726,2]
[368190826,1751055048383,-460.0,0.00019726,2]
[368190828,1751055048393,-460.0,0.00019726,2]
[368190830,1751055048402,-982.66,0.00019726,2]
[368190832,1751055048411,-760.75,0.00019726,2]
[368190834,1751055048421,-1822.68,0.00019726,2]
[368190836,1751055048431,-460.0,0.00019726,2]
[368190838,1751055048440,-7524.67,0.00019726,2]
[368190840,1751055048451,-905.34,0.00019726,2]
[368190842,1751055048460,-460.0,0.00019726,2]
[368190844,1751055048470,-460.0,0.00019726,2]
[368190846,1751055048480,-460.0,0.00019726,2]
[368190848,1751055048490,-849.67,0.00019726,2]
[368190850,1751055048499,-356.39224192,0.00019726,2]
[368190852,1751055048509,-919.95,0.00019726,2]
[368190854,1751055048518,-460.0,0.00019726,2]
[368190856,1751055048527,-503.72,0.00019726,2]
[368190858,1751055048537,-460.0,0.00019726,2]
[368190860,1751055048546,-6293.24,0.00019726,2]
[368190862,1751055048555,-460.0,0.00019726,2]
[368190864,1751055048565,-1443.1,0.00019726,2]